Workbook

Sheet An
Q2: Calendrier Titre
A3: An | E3: Mois | I3: premier jour | W3: objectif mensuel | Z3: 25000
A4: 2016 | E4: 1 | I4: 1 | L4: 1:di, 2:lu | Q4: Productivitée Atelier
A5: Note : Les calendriers mensuels montrent seulement le premier 2 vacances/événements par le jour de la liste au dessous.
A6: =IF(Q4="","",Q4) -> Productivitée Atelier
A7: =IF(A4,A4&"") -> 2016
A9: =DATE($A$4,$E$4,1) -> 2016-01-01 | I9: =DATE(YEAR(A9),MONTH(A9)+1,1) -> 2016-02-01 | Q9: =DATE(YEAR(I9),MONTH(I9)+1,1) -> 2016-03-01 | Y9: Date | Z9: Vacances ou Evénement
A10: =INDEX({"di";"lu";"ma";"me";"je";"ve";"sa"},1+MOD($I$4+1-2,7)) -> di | B10: =INDEX({"di";"lu";"ma";"me";"je";"ve";"sa"},1+MOD($I$4+2-2,7)) -> lu | C10: =INDEX({"di";"lu";"ma";"me";"je";"ve";"sa"},1+MOD($I$4+3-2,7)) -> ma | D10: =INDEX({"di";"lu";"ma";"me";"je";"ve";"sa"},1+MOD($I$4+4-2,7)) -> me | E10: =INDEX({"di";"lu";"ma";"me";"je";"ve";"sa"},1+MOD($I$4+5-2,7)) -> je | F10: =INDEX({"di";"lu";"ma";"me";"je";"ve";"sa"},1+MOD($I$4+6-2,7)) -> ve | G10: =INDEX({"di";"lu";"ma";"me";"je";"ve";"sa"},1+MOD($I$4+7-2,7)) -> sa | I10: =$A$10 -> di | J10: =$B$10 -> lu | K10: =$C$10 -> ma | L10: =$D$10 -> me | M10: =$E$10 -> je | N10: =$F$10 -> ve | O10: =$G$10 -> sa | Q10: =$A$10 -> di | R10: =$B$10 -> lu | S10: =$C$10 -> ma | T10: =$D$10 -> me | U10: =$E$10 -> je | V10: =$F$10 -> ve | W10: =$G$10 -> sa
A11: =IF(MONTH($A$9)<>MONTH($A$9-(WEEKDAY($A$9,1)-($I$4-1))-IF((WEEKDAY($A$9,1)-($I$4-1))<=0,7,0)+(ROW(A11)-ROW($A$11))*7+(COLUMN(A11)-COLUMN($A$11)+1)),"",$A$9-(WEEKDAY($A$9,1)-($I$4-1))-IF((WEEKDAY($A$9,1)-($I$4-1))<=0,7,0)+(ROW(A11)-ROW($A$11))*7+(COLUMN(A11)-COLUMN($A$11)+1)) ->  | F11: 2016-01-01 | G11: 2016-01-02 | I11: =IF(MONTH($I$9)<>MONTH($I$9-(WEEKDAY($I$9,1)-($I$4-1))-IF((WEEKDAY($I$9,1)-($I$4-1))<=0,7,0)+(ROW(I11)-ROW($I$11))*7+(COLUMN(I11)-COLUMN($I$11)+1)),"",$I$9-(WEEKDAY($I$9,1)-($I$4-1))-IF((WEEKDAY($I$9,1)-($I$4-1))<=0,7,0)+(ROW(I11)-ROW($I$11))*7+(COLUMN(I11)-COLUMN($I$11)+1)) ->  | J11: 2016-02-01 | K11: 2016-02-02 | L11: 2016-02-03 | M11: 2016-02-04 | N11: 2016-02-05 | O11: 2016-02-06 | Q11: =IF(MONTH($Q$9)<>MONTH($Q$9-(WEEKDAY($Q$9,1)-($I$4-1))-IF((WEEKDAY($Q$9,1)-($I$4-1))<=0,7,0)+(ROW(Q11)-ROW($Q$11))*7+(COLUMN(Q11)-COLUMN($Q$11)+1)),"",$Q$9-(WEEKDAY($Q$9,1)-($I$4-1))-IF((WEEKDAY($Q$9,1)-($I$4-1))<=0,7,0)+(ROW(Q11)-ROW($Q$11))*7+(COLUMN(Q11)-COLUMN($Q$11)+1)) ->  | S11: 2016-03-01 | T11: 2016-03-02 | U11: 2016-03-03 | V11: 2016-03-04 | W11: 2016-03-05 | Y11: =DATE(Année,1,1) -> 2016-01-01 | Z11: Premier de l'an
A12: 2016-01-03 | B12: 2016-01-04 | C12: 2016-01-05 | D12: 2016-01-06 | E12: 2016-01-07 | F12: 2016-01-08 | G12: 2016-01-09 | I12: 2016-02-07 | J12: 2016-02-08 | K12: 2016-02-09 | L12: 2016-02-10 | M12: 2016-02-11 | N12: 2016-02-12 | O12: 2016-02-13 | Q12: 2016-03-06 | R12: 2016-03-07 | S12: 2016-03-08 | T12: 2016-03-09 | U12: 2016-03-10 | V12: 2016-03-11 | W12: 2016-03-12 | Y12: =DATE(Année,3,29.56+0.979*MOD(204-11*MOD(Année,19),30)- WEEKDAY(DATE(Année,3,28.56+0.979*MOD(204-11*MOD(Année,19),30)))) -> 2016-03-27 | Z12: Pâques
A13: 2016-01-10 | B13: 2016-01-11 | C13: 2016-01-12 | D13: 2016-01-13 | E13: 2016-01-14 | F13: 2016-01-15 | G13: 2016-01-16 | I13: 2016-02-14 | J13: 2016-02-15 | K13: 2016-02-16 | L13: 2016-02-17 | M13: 2016-02-18 | N13: 2016-02-19 | O13: 2016-02-20 | Q13: 2016-03-13 | R13: 2016-03-14 | S13: 2016-03-15 | T13: 2016-03-16 | U13: 2016-03-17 | V13: 2016-03-18 | W13: 2016-03-19 | Y13: =Y12+1 -> 2016-03-28 | Z13: Lundi de Pâques
A14: 2016-01-17 | B14: 2016-01-18 | C14: 2016-01-19 | D14: 2016-01-20 | E14: 2016-01-21 | F14: 2016-01-22 | G14: 2016-01-23 | I14: 2016-02-21 | J14: 2016-02-22 | K14: 2016-02-23 | L14: 2016-02-24 | M14: 2016-02-25 | N14: 2016-02-26 | O14: 2016-02-27 | Q14: 2016-03-20 | R14: 2016-03-21 | S14: 2016-03-22 | T14: 2016-03-23 | U14: 2016-03-24 | V14: 2016-03-25 | W14: 2016-03-26 | Y14: =DATE(Année,5,1) -> 2016-05-01 | Z14: Fête du travail
A15: 2016-01-24 | B15: 2016-01-25 | C15: 2016-01-26 | D15: 2016-01-27 | E15: 2016-01-28 | F15: 2016-01-29 | G15: 2016-01-30 | I15: 2016-02-28 | J15: 2016-02-29 | Q15: 2016-03-27 | R15: 2016-03-28 | S15: 2016-03-29 | T15: 2016-03-30 | U15: 2016-03-31 | Y15: =DATE(Année,5,8) -> 2016-05-08 | Z15: Victoire 1945
A16: 2016-01-31 | Y16: =Y12+39 -> 2016-05-05 | Z16: Ascension
Y17: =Y12+50 -> 2016-05-16 | Z17: Pentecôte
A18: =DATE(YEAR(Q9),MONTH(Q9)+1,1) -> 2016-04-01 | I18: =DATE(YEAR(A18),MONTH(A18)+1,1) -> 2016-05-01 | Q18: =DATE(YEAR(I18),MONTH(I18)+1,1) -> 2016-06-01 | Y18: =DATE(Année,7,14) -> 2016-07-14 | Z18: Fête nat.
A19: =$A$10 -> di | B19: =$B$10 -> lu | C19: =$C$10 -> ma | D19: =$D$10 -> me | E19: =$E$10 -> je | F19: =$F$10 -> ve | G19: =$G$10 -> sa | I19: =$A$10 -> di | J19: =$B$10 -> lu | K19: =$C$10 -> ma | L19: =$D$10 -> me | M19: =$E$10 -> je | N19: =$F$10 -> ve | O19: =$G$10 -> sa | Q19: =$A$10 -> di | R19: =$B$10 -> lu | S19: =$C$10 -> ma | T19: =$D$10 -> me | U19: =$E$10 -> je | V19: =$F$10 -> ve | W19: =$G$10 -> sa | Y19: =DATE(Année,8,15) -> 2016-08-15 | Z19: Assomption
A20: =IF(MONTH($A$18)<>MONTH($A$18-(WEEKDAY($A$18,1)-($I$4-1))-IF((WEEKDAY($A$18,1)-($I$4-1))<=0,7,0)+(ROW(A20)-ROW($A$20))*7+(COLUMN(A20)-COLUMN($A$20)+1)),"",$A$18-(WEEKDAY($A$18,1)-($I$4-1))-IF((WEEKDAY($A$18,1)-($I$4-1))<=0,7,0)+(ROW(A20)-ROW($A$20))*7+(COLUMN(A20)-COLUMN($A$20)+1)) ->  | F20: 2016-04-01 | G20: 2016-04-02 | I20: =IF(MONTH($I$18)<>MONTH($I$18-(WEEKDAY($I$18,1)-($I$4-1))-IF((WEEKDAY($I$18,1)-($I$4-1))<=0,7,0)+(ROW(I20)-ROW($I$20))*7+(COLUMN(I20)-COLUMN($I$20)+1)),"",$I$18-(WEEKDAY($I$18,1)-($I$4-1))-IF((WEEKDAY($I$18,1)-($I$4-1))<=0,7,0)+(ROW(I20)-ROW($I$20))*7+(COLUMN(I20)-COLUMN($I$20)+1)) -> 2016-05-01 | J20: =IF(MONTH($I$18)<>MONTH($I$18-(WEEKDAY($I$18,1)-($I$4-1))-IF((WEEKDAY($I$18,1)-($I$4-1))<=0,7,0)+(ROW(J20)-ROW($I$20))*7+(COLUMN(J20)-COLUMN($I$20)+1)),"",$I$18-(WEEKDAY($I$18,1)-($I$4-1))-IF((WEEKDAY($I$18,1)-($I$4-1))<=0,7,0)+(ROW(J20)-ROW($I$20))*7+(COLUMN(J20)-COLUMN($I$20)+1)) -> 2016-05-02 | K20: 2016-05-03 | L20: 2016-05-04 | M20: 2016-05-05 | N20: 2016-05-06 | O20: 2016-05-07 | Q20: =IF(MONTH($Q$18)<>MONTH($Q$18-(WEEKDAY($Q$18,1)-($I$4-1))-IF((WEEKDAY($Q$18,1)-($I$4-1))<=0,7,0)+(ROW(Q20)-ROW($Q$20))*7+(COLUMN(Q20)-COLUMN($Q$20)+1)),"",$Q$18-(WEEKDAY($Q$18,1)-($I$4-1))-IF((WEEKDAY($Q$18,1)-($I$4-1))<=0,7,0)+(ROW(Q20)-ROW($Q$20))*7+(COLUMN(Q20)-COLUMN($Q$20)+1)) ->  | T20: 2016-06-01 | U20: 2016-06-02 | V20: 2016-06-03 | W20: 2016-06-04 | Y20: =DATE(Année,11,1) -> 2016-11-01 | Z20: Toussaint
A21: 2016-04-03 | B21: 2016-04-04 | C21: 2016-04-05 | D21: 2016-04-06 | E21: 2016-04-07 | F21: 2016-04-08 | G21: 2016-04-09 | I21: 2016-05-08 | J21: 2016-05-09 | K21: 2016-05-10 | L21: 2016-05-11 | M21: 2016-05-12 | N21: 2016-05-13 | O21: 2016-05-14 | Q21: 2016-06-05 | R21: 2016-06-06 | S21: 2016-06-07 | T21: 2016-06-08 | U21: 2016-06-09 | V21: 2016-06-10 | W21: 2016-06-11 | Y21: =DATE(Année,11,11) -> 2016-11-11 | Z21: Armistice
A22: 2016-04-10 | B22: 2016-04-11 | C22: 2016-04-12 | D22: 2016-04-13 | E22: 2016-04-14 | F22: 2016-04-15 | G22: 2016-04-16 | I22: 2016-05-15 | J22: 2016-05-16 | K22: 2016-05-17 | L22: 2016-05-18 | M22: 2016-05-19 | N22: 2016-05-20 | O22: 2016-05-21 | Q22: 2016-06-12 | R22: 2016-06-13 | S22: 2016-06-14 | T22: 2016-06-15 | U22: 2016-06-16 | V22: 2016-06-17 | W22: 2016-06-18 | Y22: =DATE(Année,12,25) -> 2016-12-25 | Z22: Noël
A23: 2016-04-17 | B23: 2016-04-18 | C23: 2016-04-19 | D23: 2016-04-20 | E23: 2016-04-21 | F23: 2016-04-22 | G23: 2016-04-23 | I23: 2016-05-22 | J23: 2016-05-23 | K23: 2016-05-24 | L23: 2016-05-25 | M23: 2016-05-26 | N23: 2016-05-27 | O23: 2016-05-28 | Q23: 2016-06-19 | R23: 2016-06-20 | S23: 2016-06-21 | T23: 2016-06-22 | U23: 2016-06-23 | V23: 2016-06-24 | W23: 2016-06-25
A24: 2016-04-24 | B24: 2016-04-25 | C24: 2016-04-26 | D24: 2016-04-27 | E24: 2016-04-28 | F24: 2016-04-29 | G24: 2016-04-30 | I24: 2016-05-29 | J24: 2016-05-30 | K24: 2016-05-31 | Q24: 2016-06-26 | R24: 2016-06-27 | S24: 2016-06-28 | T24: 2016-06-29 | U24: 2016-06-30
A27: =DATE(YEAR(Q18),MONTH(Q18)+1,1) -> 2016-07-01 | I27: =DATE(YEAR(A27),MONTH(A27)+1,1) -> 2016-08-01 | Q27: =DATE(YEAR(I27),MONTH(I27)+1,1) -> 2016-09-01
A28: =$A$10 -> di | B28: =$B$10 -> lu | C28: =$C$10 -> ma | D28: =$D$10 -> me | E28: =$E$10 -> je | F28: =$F$10 -> ve | G28: =$G$10 -> sa | I28: =$A$10 -> di | J28: =$B$10 -> lu | K28: =$C$10 -> ma | L28: =$D$10 -> me | M28: =$E$10 -> je | N28: =$F$10 -> ve | O28: =$G$10 -> sa | Q28: =$A$10 -> di | R28: =$B$10 -> lu | S28: =$C$10 -> ma | T28: =$D$10 -> me | U28: =$E$10 -> je | V28: =$F$10 -> ve | W28: =$G$10 -> sa
A29: =IF(MONTH($A$27)<>MONTH($A$27-(WEEKDAY($A$27,1)-($I$4-1))-IF((WEEKDAY($A$27,1)-($I$4-1))<=0,7,0)+(ROW(A29)-ROW($A$29))*7+(COLUMN(A29)-COLUMN($A$29)+1)),"",$A$27-(WEEKDAY($A$27,1)-($I$4-1))-IF((WEEKDAY($A$27,1)-($I$4-1))<=0,7,0)+(ROW(A29)-ROW($A$29))*7+(COLUMN(A29)-COLUMN($A$29)+1)) ->  | F29: 2016-07-01 | G29: 2016-07-02 | I29: =IF(MONTH($I$27)<>MONTH($I$27-(WEEKDAY($I$27,1)-($I$4-1))-IF((WEEKDAY($I$27,1)-($I$4-1))<=0,7,0)+(ROW(I29)-ROW($I$29))*7+(COLUMN(I29)-COLUMN($I$29)+1)),"",$I$27-(WEEKDAY($I$27,1)-($I$4-1))-IF((WEEKDAY($I$27,1)-($I$4-1))<=0,7,0)+(ROW(I29)-ROW($I$29))*7+(COLUMN(I29)-COLUMN($I$29)+1)) ->  | J29: 2016-08-01 | K29: 2016-08-02 | L29: 2016-08-03 | M29: 2016-08-04 | N29: 2016-08-05 | O29: 2016-08-06 | Q29: =IF(MONTH($Q$27)<>MONTH($Q$27-(WEEKDAY($Q$27,1)-($I$4-1))-IF((WEEKDAY($Q$27,1)-($I$4-1))<=0,7,0)+(ROW(Q29)-ROW($Q$29))*7+(COLUMN(Q29)-COLUMN($Q$29)+1)),"",$Q$27-(WEEKDAY($Q$27,1)-($I$4-1))-IF((WEEKDAY($Q$27,1)-($I$4-1))<=0,7,0)+(ROW(Q29)-ROW($Q$29))*7+(COLUMN(Q29)-COLUMN($Q$29)+1)) ->  | U29: 2016-09-01 | V29: 2016-09-02 | W29: 2016-09-03
A30: 2016-07-03 | B30: 2016-07-04 | C30: 2016-07-05 | D30: 2016-07-06 | E30: 2016-07-07 | F30: 2016-07-08 | G30: 2016-07-09 | I30: 2016-08-07 | J30: 2016-08-08 | K30: 2016-08-09 | L30: 2016-08-10 | M30: 2016-08-11 | N30: 2016-08-12 | O30: 2016-08-13 | Q30: 2016-09-04 | R30: 2016-09-05 | S30: 2016-09-06 | T30: 2016-09-07 | U30: 2016-09-08 | V30: 2016-09-09 | W30: 2016-09-10
A31: 2016-07-10 | B31: 2016-07-11 | C31: 2016-07-12 | D31: 2016-07-13 | E31: 2016-07-14 | F31: 2016-07-15 | G31: 2016-07-16 | I31: 2016-08-14 | J31: 2016-08-15 | K31: 2016-08-16 | L31: 2016-08-17 | M31: 2016-08-18 | N31: 2016-08-19 | O31: 2016-08-20 | Q31: 2016-09-11 | R31: 2016-09-12 | S31: 2016-09-13 | T31: 2016-09-14 | U31: 2016-09-15 | V31: 2016-09-16 | W31: 2016-09-17
A32: 2016-07-17 | B32: 2016-07-18 | C32: 2016-07-19 | D32: 2016-07-20 | E32: 2016-07-21 | F32: 2016-07-22 | G32: 2016-07-23 | I32: 2016-08-21 | J32: 2016-08-22 | K32: 2016-08-23 | L32: 2016-08-24 | M32: 2016-08-25 | N32: 2016-08-26 | O32: 2016-08-27 | Q32: 2016-09-18 | R32: 2016-09-19 | S32: 2016-09-20 | T32: 2016-09-21 | U32: 2016-09-22 | V32: 2016-09-23 | W32: 2016-09-24
A33: 2016-07-24 | B33: 2016-07-25 | C33: 2016-07-26 | D33: 2016-07-27 | E33: 2016-07-28 | F33: 2016-07-29 | G33: 2016-07-30 | I33: 2016-08-28 | J33: 2016-08-29 | K33: 2016-08-30 | L33: 2016-08-31 | Q33: 2016-09-25 | R33: 2016-09-26 | S33: 2016-09-27 | T33: 2016-09-28 | U33: 2016-09-29 | V33: 2016-09-30
A34: 2016-07-31
A36: =DATE(YEAR(Q27),MONTH(Q27)+1,1) -> 2016-10-01 | I36: =DATE(YEAR(A36),MONTH(A36)+1,1) -> 2016-11-01 | Q36: =DATE(YEAR(I36),MONTH(I36)+1,1) -> 2016-12-01 | X36: [42]
A37: =$A$10 -> di | B37: =$B$10 -> lu | C37: =$C$10 -> ma | D37: =$D$10 -> me | E37: =$E$10 -> je | F37: =$F$10 -> ve | G37: =$G$10 -> sa | I37: =$A$10 -> di | J37: =$B$10 -> lu | K37: =$C$10 -> ma | L37: =$D$10 -> me | M37: =$E$10 -> je | N37: =$F$10 -> ve | O37: =$G$10 -> sa | Q37: =$A$10 -> di | R37: =$B$10 -> lu | S37: =$C$10 -> ma | T37: =$D$10 -> me | U37: =$E$10 -> je | V37: =$F$10 -> ve | W37: =$G$10 -> sa
A38: =IF(MONTH($A$36)<>MONTH($A$36-(WEEKDAY($A$36,1)-($I$4-1))-IF((WEEKDAY($A$36,1)-($I$4-1))<=0,7,0)+(ROW(A38)-ROW($A$38))*7+(COLUMN(A38)-COLUMN($A$38)+1)),"",$A$36-(WEEKDAY($A$36,1)-($I$4-1))-IF((WEEKDAY($A$36,1)-($I$4-1))<=0,7,0)+(ROW(A38)-ROW($A$38))*7+(COLUMN(A38)-COLUMN($A$38)+1)) ->  | G38: 2016-10-01 | I38: =IF(MONTH($I$36)<>MONTH($I$36-(WEEKDAY($I$36,1)-($I$4-1))-IF((WEEKDAY($I$36,1)-($I$4-1))<=0,7,0)+(ROW(I38)-ROW($I$38))*7+(COLUMN(I38)-COLUMN($I$38)+1)),"",$I$36-(WEEKDAY($I$36,1)-($I$4-1))-IF((WEEKDAY($I$36,1)-($I$4-1))<=0,7,0)+(ROW(I38)-ROW($I$38))*7+(COLUMN(I38)-COLUMN($I$38)+1)) ->  | K38: 2016-11-01 | L38: 2016-11-02 | M38: 2016-11-03 | N38: 2016-11-04 | O38: 2016-11-05 | Q38: =IF(MONTH($Q$36)<>MONTH($Q$36-(WEEKDAY($Q$36,1)-($I$4-1))-IF((WEEKDAY($Q$36,1)-($I$4-1))<=0,7,0)+(ROW(Q38)-ROW($Q$38))*7+(COLUMN(Q38)-COLUMN($Q$38)+1)),"",$Q$36-(WEEKDAY($Q$36,1)-($I$4-1))-IF((WEEKDAY($Q$36,1)-($I$4-1))<=0,7,0)+(ROW(Q38)-ROW($Q$38))*7+(COLUMN(Q38)-COLUMN($Q$38)+1)) ->  | U38: 2016-12-01 | V38: 2016-12-02 | W38: 2016-12-03
A39: 2016-10-02 | B39: 2016-10-03 | C39: 2016-10-04 | D39: 2016-10-05 | E39: 2016-10-06 | F39: 2016-10-07 | G39: 2016-10-08 | I39: 2016-11-06 | J39: 2016-11-07 | K39: 2016-11-08 | L39: 2016-11-09 | M39: 2016-11-10 | N39: 2016-11-11 | O39: 2016-11-12 | Q39: 2016-12-04 | R39: 2016-12-05 | S39: 2016-12-06 | T39: 2016-12-07 | U39: 2016-12-08 | V39: 2016-12-09 | W39: 2016-12-10
A40: 2016-10-09 | B40: 2016-10-10 | C40: 2016-10-11 | D40: 2016-10-12 | E40: 2016-10-13 | F40: 2016-10-14 | G40: 2016-10-15 | I40: 2016-11-13 | J40: 2016-11-14 | K40: 2016-11-15 | L40: 2016-11-16 | M40: 2016-11-17 | N40: 2016-11-18 | O40: 2016-11-19 | Q40: 2016-12-11 | R40: 2016-12-12 | S40: 2016-12-13 | T40: 2016-12-14 | U40: 2016-12-15 | V40: 2016-12-16 | W40: 2016-12-17
A41: 2016-10-16 | B41: 2016-10-17 | C41: 2016-10-18 | D41: 2016-10-19 | E41: 2016-10-20 | F41: 2016-10-21 | G41: 2016-10-22 | I41: 2016-11-20 | J41: 2016-11-21 | K41: 2016-11-22 | L41: 2016-11-23 | M41: 2016-11-24 | N41: 2016-11-25 | O41: 2016-11-26 | Q41: 2016-12-18 | R41: 2016-12-19 | S41: 2016-12-20 | T41: 2016-12-21 | U41: 2016-12-22 | V41: 2016-12-23 | W41: 2016-12-24
A42: 2016-10-23 | B42: 2016-10-24 | C42: 2016-10-25 | D42: 2016-10-26 | E42: 2016-10-27 | F42: 2016-10-28 | G42: 2016-10-29 | I42: 2016-11-27 | J42: 2016-11-28 | K42: 2016-11-29 | L42: 2016-11-30 | Q42: 2016-12-25 | R42: 2016-12-26 | S42: 2016-12-27 | T42: 2016-12-28 | U42: 2016-12-29 | V42: 2016-12-30 | W42: 2016-12-31
A43: 2016-10-30 | B43: 2016-10-31
A45: pierre | I45: ouvrier1
A46: paul | I46: ouvrier2
A47: jacques | I47: ouvrier3
I48: ouvrier4
I49: ouvrier5
I50: ouvrier6
I51: ouvrier7
I52: ouvrier8
I53: ouvrier9

Sheet Janvier
A1: =DATE(Année,1,1) -> 2016-01-01
D3: =ouvrier2 -> paul
A5: 1er jour ouvré | C5: =WORKDAY(EOMONTH(A1,-1),1,Fer) -> 2016-01-04 | D5: =DATE(Année,1,1) -> 2016-01-01 | E5: heures mois | F5: Objectif | G5: Atteint
B7: JOURS OUVRABLES | D7: =NETWORKDAYS(A1,Fevrier!A1-1,Fer) -> 1900-01-20 | E7: =(D7*7)-D8+E8 -> 140 | F7: =E7*70%*65 -> 6370 | G7: 6587
A8: HEURES D'ABSENCES / HEURES SUPP
A10: C.A. | B10: % OBJECTIF | C10: PRIME BRUTE
A12: =F7*B12/100 -> 7007 | B12: 110 | C12: 420
A13: =F7*B13/100 -> 6943.3 | B13: 109 | C13: 410
A14: =F7*B14/100 -> 6879.6 | B14: 108 | C14: 400
A15: =F7*B15/100 -> 6815.9 | B15: 107 | C15: 390 | F15: Ceci est un fichier pour definir les primes de rendement pour un ouvrier
A16: =F7*B16/100 -> 6752.2 | B16: 106 | C16: 380 | F16: a savoir que il y a 20 jours ouvrés a 7 h par jour donc 140h par mois l'objectif a atteindre est de
A17: =F7*B17/100 -> 6688.5 | B17: 105 | C17: 370 | F17: 6370 qui correspond a une prime de 100% de rendement plus son chiffre atteint en G7 est haut plus le pourcentage augmente dans la colonne B
A18: =F7*B18/100 -> 6624.8 | B18: 104 | C18: 360
A19: =F7*B19/100 -> 6561.1 | B19: 103 | C19: 350
A20: =F7*B20/100 -> 6497.4 | B20: 102 | C20: 340
A21: =F7*B21/100 -> 6433.7 | B21: 101 | C21: 330
A22: =F7*B22/100 -> 6370 | B22: 100 | C22: 320
A23: =F7*B23/100 -> 6051.5 | B23: 95 | C23: 250
A24: =F7*B24/100 -> 5733 | B24: 90 | C24: 200
A25: =F7*B25/100 -> 5414.5 | B25: 85 | C25: 160
A26: =F7*B26/100 -> 5096 | B26: 80 | C26: 130
A34: =CONCATENATE("prime CA ",ouvrier2) -> prime CA paul
A35: 1 retour = déduction 50%
A36: 2 retours = annulation prime
A37: Prime obtenue
B38: 350 | C38: comment faire pour afficher dans B38 la valeur de la prime qui correspondrait a la valeur G7 103% dans ce cas 350

Sheet Fevrier
A1: =DATE(Année,2,1) -> 2016-02-01
D3: =ouvrier2 -> paul
A5: 1er jour ouvré | C5: =WORKDAY(EOMONTH(A1,-1),1,Fer) -> 2016-02-01 | D5: =DATE(Année,2,1) -> 2016-02-01 | F5: Objectif | G5: Atteint
B7: JOURS OUVRABLES | F7: =(D7*7-D8)*70%*65 -> 0
B8: HEURES D'ABSENCES
A10: C.A. | B10: % OBJECTIF | C10: PRIME BRUTE
A12: =F7*B12/100 -> 0 | B12: 110 | C12: 420
A13: =F7*B13/100 -> 0 | B13: 109 | C13: 410
A14: =F7*B14/100 -> 0 | B14: 108 | C14: 400
A15: =F7*B15/100 -> 0 | B15: 107 | C15: 390
A16: =F7*B16/100 -> 0 | B16: 106 | C16: 380
A17: =F7*B17/100 -> 0 | B17: 105 | C17: 370
A18: =F7*B18/100 -> 0 | B18: 104 | C18: 360
A19: =F7*B19/100 -> 0 | B19: 103 | C19: 350
A20: =F7*B20/100 -> 0 | B20: 102 | C20: 340
A21: =F7*B21/100 -> 0 | B21: 101 | C21: 330
A22: =F7*B22/100 -> 0 | B22: 100 | C22: 320
A23: =F7*B23/100 -> 0 | B23: 95 | C23: 250
A24: =F7*B24/100 -> 0 | B24: 90 | C24: 200
A25: =F7*B25/100 -> 0 | B25: 85 | C25: 160
A26: =F7*B26/100 -> 0 | B26: 80 | C26: 130
A34: =CONCATENATE("prime CA ",ouvrier2) -> prime CA paul
A35: 1 retour = déduction 50%
A36: 2 retours = annulation prime
